fUSD/lending_fUSD_20250617
["ID","MTS","AMOUNT","RATE_DAILY","PERIOD"]
[366302947,1750179104183,-223.633579,0.00016931,2]
[366302948,1750179104194,-223.633579,0.00016931,2]
[366302949,1750179104204,-151.0,0.00016931,2]
[366302950,1750179104213,-151.0,0.00016931,2]
[366302951,1750179104223,-223.633579,0.00016931,2]
[366302952,1750179104236,-223.633579,0.00016931,2]
[366302953,1750179104246,-490.0,0.00016931,2]
[366302954,1750179104256,-407.0530826,0.00016931,2]
[366302955,1750179104266,-490.0,0.00016931,2]
[366302956,1750179104276,-540.0,0.00016931,2]
[366302957,1750179104287,-490.0,0.00016931,2]
[366302958,1750179104297,-490.0,0.00016931,2]
[366302959,1750179104309,-490.0,0.00016931,2]
[366302960,1750179104318,-490.0,0.00016931,2]
[366302961,1750179104329,-370.28423312,0.00016931,2]
[366302962,1750179104339,-490.0,0.00016931,2]
[366302963,1750179104348,-490.0,0.00016931,2]
[366302964,1750179104358,-490.0,0.00016931,2]
[366302965,1750179104367,-490.0,0.00016931,2]
[366302966,1750179104377,-433.01267445,0.00016931,2]
[366302967,1750179104387,-490.0,0.00016931,2]
[366302968,1750179104397,-598.73,0.00016931,2]
[366302969,1750179104407,-634.57,0.00016931,2]
[366302970,1750179104418,-490.0,0.00016931,2]
[366302971,1750179104428,-490.0,0.00016931,2]
[366302972,1750179104438,-490.0,0.00016931,2]
[366302973,1750179104447,-490.0,0.00016931,2]
[366302974,1750179104457,-490.0,0.00016931,2]
[366302975,1750179104468,-490.0,0.00016931,2]
[366302976,1750179104482,-490.0,0.00016931,2]
[366302977,1750179104492,-490.0,0.00016931,2]
[366302978,1750179104503,-490.0,0.00016931,2]
[366302979,1750179104517,-277.18173693,0.00016931,2]
[366302980,1750179104528,-490.0,0.00016931,2]
[366302981,1750179104537,-490.0,0.00016931,2]
[366302982,1750179104547,-521.96,0.00016931,2]
[366302983,1750179104558,-490.0,0.00016931,2]
[366302984,1750179104567,-490.0,0.00016931,2]
[366302985,1750179104577,-490.0,0.00016931,2]
[366302986,1750179104588,-490.0,0.00016931,2]
[366302987,1750179104598,-490.0,0.00016931,2]
[366302988,1750179104608,-490.0,0.00016931,2]
[366302989,1750179104617,-490.0,0.00016931,2]
[366302990,1750179104628,-490.0,0.00016931,2]
[366302991,1750179104638,-490.0,0.00016931,2]
[366302992,1750179104648,-490.0,0.00016931,2]
[366302993,1750179104657,-490.0,0.00016931,2]
[366302994,1750179104667,-152.936387,0.00016931,2]
[366302995,1750179104677,-490.0,0.00016931,2]
[366302996,1750179104687,-490.0,0.00016931,2]
[366302997,1750179104697,-490.0,0.00016931,2]
[366302998,1750179104707,-507.58,0.00016931,2]
[366302999,1750179104716,-490.0,0.00016931,2]
[366303000,1750179104730,-490.0,0.00016931,2]
[366303001,1750179104741,-490.0,0.00016931,2]
[366303002,1750179104751,-490.0,0.00016931,2]
[366303003,1750179104763,-490.0,0.00016931,2]
[366303004,1750179104773,-490.0,0.00016931,2]
[366303005,1750179104783,-490.0,0.00016931,2]
[366303006,1750179104794,-490.0,0.00016931,2]
[366303007,1750179104804,-429.79377813,0.00016931,2]
[366303008,1750179104814,-490.0,0.00016931,2]
[366303009,1750179104825,-490.0,0.00016931,2]
[366303010,1750179104835,-490.0,0.00016931,2]
[366303011,1750179104845,-490.0,0.00016931,2]
[366303012,1750179104854,-490.0,0.00016931,2]
[366303013,1750179104864,-490.0,0.00016931,2]
[366303014,1750179104874,-449.78183,0.00016931,2]
[366303015,1750179104884,-449.78183,0.00016931,2]
[366303016,1750179104894,-159.308428,0.00016931,2]
[366303017,1750179104904,-490.0,0.00016931,2]
[366303018,1750179104914,-490.0,0.00016931,2]
[366303019,1750179104923,-449.78183,0.00016931,2]
[366303020,1750179104933,-449.78183,0.00016931,2]
[366303021,1750179104942,-573.9,0.00016931,2]
[366303022,1750179104952,-490.0,0.00016931,2]
[366303023,1750179104961,-1000.0,0.00016931,2]
[366303024,1750179104970,-490.0,0.00016931,2]
[366303025,1750179104981,-490.0,0.00016931,2]
[366303026,1750179104991,-598.75051377,0.00016931,2]
[366303027,1750179105000,-490.0,0.00016931,2]
[366303028,1750179105011,-495.76,0.00016931,2]
[366303029,1750179105020,-490.0,0.00016931,2]
[366303030,1750179105029,-490.0,0.00016931,2]
[366303031,1750179105038,-490.0,0.00016931,2]
[366303032,1750179105047,-490.0,0.00016931,2]
[366303033,1750179105056,-490.0,0.00016931,2]
[366303034,1750179105066,-490.0,0.00016931,2]
[366303035,1750179105075,-556.55,0.00016931,2]
[366303036,1750179105085,-875.204733,0.00016931,2]
[366303037,1750179105095,-513.75,0.00016931,2]
[366303038,1750179105104,-864.66,0.00016931,2]
[366303039,1750179105113,-490.0,0.00016931,2]
[366303040,1750179105122,-490.0,0.00016931,2]
[366303041,1750179105132,-875.204733,0.00016931,2]
[366303042,1750179105141,-506.84,0.00016931,2]
[366303043,1750179105150,-490.0,0.00016931,2]
[366303044,1750179105159,-490.0,0.00016931,2]
[366303045,1750179105169,-845.04,0.00016931,2]
[366303046,1750179105178,-515.85,0.00016931,2]
[366303047,1750179105187,-490.0,0.00016931,2]
[366303048,1750179105197,-490.0,0.00016931,2]
[366303049,1750179105207,-490.0,0.00016931,2]
[366303050,1750179105216,-490.0,0.00016931,2]
[366303051,1750179105228,-490.0,0.00016931,2]
[366303052,1750179105238,-490.0,0.00016931,2]
[366303053,1750179105249,-490.0,0.00016931,2]
[366303054,1750179105259,-490.0,0.00016931,2]
[366303055,1750179105268,-490.0,0.00016931,2]
[366303056,1750179105279,-490.0,0.00016931,2]
[366303057,1750179105289,-490.0,0.00016931,2]
[366303058,1750179105299,-490.0,0.00016931,2]
[366303059,1750179105309,-490.0,0.00016931,2]
[366303060,1750179105318,-490.0,0.00016931,2]
[366303061,1750179105328,-490.0,0.00016931,2]
[366303062,1750179105338,-490.0,0.00016931,2]
[366303063,1750179105347,-490.0,0.00016931,2]
[366303064,1750179105357,-490.0,0.00016931,2]
[366303065,1750179105367,-490.0,0.00016931,2]
[366303066,1750179105377,-654.08,0.00016931,2]
[366303067,1750179105387,-373.79987245,0.00016931,2]
[366303068,1750179105396,-490.0,0.00016931,2]
[366303069,1750179105405,-490.0,0.00016931,2]
[366303070,1750179105414,-613.69,0.00016931,2]
[366303071,1750179105423,-580.06248134,0.00016931,2]
[366303072,1750179105434,-490.0,0.00016931,2]
[366303073,1750179105443,-151.0,0.00016931,2]
[366303074,1750179105452,-151.0,0.00016931,2]
[366303075,1750179105461,-490.0,0.00016931,2]
[366303076,1750179105471,-490.0,0.00016931,2]
[366303077,1750179105485,-490.0,0.00016931,2]
[366303078,1750179105495,-490.0,0.00016931,2]
[366303079,1750179105506,-424.36480577,0.00016931,2]
[366303080,1750179105518,-490.0,0.00016931,2]
[366303081,1750179105528,-490.0,0.00016931,2]
[366303082,1750179105537,-490.0,0.00016931,2]
[366303083,1750179105547,-734.97,0.00016931,2]
[366303084,1750179105557,-555.05,0.00016931,2]
[366303085,1750179105566,-490.0,0.00016931,2]
[366303086,1750179105575,-503.15,0.00016931,2]
[366303087,1750179105586,-490.0,0.00016931,2]
[366303088,1750179105596,-490.0,0.00016931,2]
[366303089,1750179105605,-184.37073311,0.00016931,2]
[366303090,1750179105615,-490.0,0.00016931,2]
[366303091,1750179105624,-678.14,0.00016931,2]
[366303092,1750179105634,-490.0,0.00016931,2]
[366303093,1750179105643,-490.0,0.00016931,2]
[366303094,1750179105653,-490.0,0.00016931,2]
[366303095,1750179105663,-490.0,0.00016931,2]
[366303096,1750179105672,-490.0,0.00016931,2]
[366303097,1750179105682,-490.0,0.00016931,2]
[366303098,1750179105691,-490.0,0.00016931,2]
[366303099,1750179105701,-490.0,0.00016931,2]
[366303100,1750179105711,-490.0,0.00016931,2]
[366303101,1750179105721,-490.0,0.00016931,2]
[366303102,1750179105735,-490.0,0.00016931,2]
[366303103,1750179105745,-544.87,0.00016931,2]
[366303104,1750179105756,-490.0,0.00016931,2]
[366303105,1750179105766,-490.0,0.00016931,2]
[366303106,1750179105777,-490.0,0.00016931,2]
[366303107,1750179105788,-490.0,0.00016931,2]
[366303108,1750179105798,-490.0,0.00016931,2]
[366303109,1750179105808,-721.65,0.00016931,2]
[366303110,1750179105818,-490.0,0.00016931,2]
[366303111,1750179105828,-490.0,0.00016931,2]
[366303112,1750179105838,-490.0,0.00016931,2]
[366303113,1750179105848,-677.45,0.00016931,2]
[366303114,1750179105858,-595.59,0.00016931,2]
[366303115,1750179105869,-490.0,0.00016931,2]
[366303116,1750179105879,-546.76146982,0.00016931,2]
[366303117,1750179105891,-490.0,0.00016931,2]
[366303118,1750179105901,-490.0,0.00016931,2]
[366303119,1750179105912,-644.79,0.00016931,2]
[366303120,1750179105922,-490.0,0.00016931,2]
[366303121,1750179105933,-490.0,0.00016931,2]
[366303122,1750179105943,-490.0,0.00016931,2]
[366303123,1750179105953,-490.0,0.00016931,2]
[366303124,1750179105964,-490.0,0.00016931,2]
[366303125,1750179105974,-506.39,0.00016931,2]
[366303126,1750179105988,-578.77,0.00016931,2]
[366303127,1750179105999,-490.0,0.00016931,2]
[366303128,1750179106009,-490.0,0.00016931,2]
[366303129,1750179106019,-490.0,0.00016931,2]
[366303130,1750179106029,-490.0,0.00016931,2]
[366303131,1750179106039,-490.0,0.00016931,2]
[366303132,1750179106048,-1020.88,0.00016931,2]
[366303133,1750179106058,-490.0,0.00016931,2]
[366303134,1750179106068,-490.0,0.00016931,2]
[366303135,1750179106078,-502.49,0.00016931,2]
[366303136,1750179106087,-490.0,0.00016931,2]
[366303137,1750179106098,-586.85,0.00016931,2]
[366303138,1750179106108,-490.0,0.00016931,2]
[366303139,1750179106118,-263.39626747,0.00016931,2]
[366303140,1750179106128,-490.0,0.00016931,2]
[366303141,1750179106137,-1299.73,0.00016931,2]
[366303142,1750179106148,-490.0,0.00016931,2]
[366303143,1750179106405,-490.0,0.00016931,2]
[366303144,1750179106416,-645.33,0.00016931,2]
[366303145,1750179106426,-659.09,0.00016931,2]
[366303146,1750179106437,-490.0,0.00016931,2]
[366303147,1750179106446,-490.0,0.00016931,2]
[366303148,1750179106456,-490.0,0.00016931,2]
[366303149,1750179106466,-490.0,0.00016931,2]
[366303150,1750179106479,-490.0,0.00016931,2]
[366303151,1750179106490,-490.0,0.00016931,2]
[366303152,1750179106503,-579.29,0.00016931,2]
[366303153,1750179106513,-490.0,0.00016931,2]
[366303154,1750179106523,-490.0,0.00016931,2]
[366303155,1750179106534,-966.82,0.00016931,2]
[366303156,1750179106545,-490.0,0.00016931,2]
[366303157,1750179106555,-591.3169164,0.00016931,2]
[366303158,1750179106565,-490.0,0.00016931,2]
[366303159,1750179106575,-812.6,0.00016931,2]
[366303160,1750179106588,-318.51543686,0.00016931,2]
[366303161,1750179106598,-490.0,0.00016931,2]
[366303162,1750179106609,-490.0,0.00016931,2]
[366303163,1750179106619,-952.21,0.00016931,2]
[366303164,1750179106629,-490.0,0.00016931,2]
[366303165,1750179106641,-490.0,0.00016931,2]
[366303166,1750179106652,-1210.5,0.00016931,2]
[366303167,1750179106662,-490.0,0.00016931,2]
[366303168,1750179106673,-490.0,0.00016931,2]
[366303169,1750179106684,-490.0,0.00016931,2]
[366303170,1750179106695,-942.44,0.00016931,2]
[366303171,1750179106705,-960.35,0.00016931,2]
[366303172,1750179106715,-490.0,0.00016931,2]
[366303173,1750179106730,-490.0,0.00016931,2]
[366303174,1750179106740,-656.6,0.00016931,2]
[366303175,1750179106751,-490.0,0.00016931,2]
[366303176,1750179106761,-1383.13,0.00016931,2]
[366303177,1750179106772,-490.0,0.00016931,2]
[366303178,1750179106783,-526.59,0.00016931,2]
[366303179,1750179106793,-490.0,0.00016931,2]
[366303180,1750179106804,-490.0,0.00016931,2]
[366303181,1750179106814,-490.0,0.00016931,2]
[366303182,1750179106825,-1906.22,0.00016931,2]
[366303183,1750179106835,-490.0,0.00016931,2]
[366303184,1750179106845,-490.0,0.00016931,2]
[366303185,1750179106857,-490.0,0.00016931,2]
[366303186,1750179106867,-490.0,0.00016931,2]
[366303187,1750179106877,-490.0,0.00016931,2]
[366303188,1750179106887,-713.35,0.00016931,2]
[366303189,1750179106897,-490.0,0.00016931,2]
[366303190,1750179106906,-490.0,0.00016931,2]
[366303191,1750179106916,-490.0,0.00016931,2]
[366303192,1750179106926,-490.0,0.00016931,2]
[366303193,1750179106936,-490.0,0.00016931,2]
[366303194,1750179106947,-490.0,0.00016931,2]
[366303195,1750179106957,-490.0,0.00016931,2]
[366303196,1750179106968,-490.0,0.00016931,2]
[366303197,1750179106982,-490.0,0.00016931,2]
[366303198,1750179106993,-500.1121483,0.00016931,2]
[366303199,1750179107004,-490.0,0.00016931,2]
[366303200,1750179107014,-490.0,0.00016931,2]
[366303201,1750179107025,-490.0,0.00016931,2]
[366303202,1750179107035,-711.08,0.00016931,2]
[366303203,1750179107046,-490.0,0.00016931,2]
[366303204,1750179107056,-771.13,0.00016931,2]
[366303205,1750179107066,-729.16,0.00016931,2]
[366303206,1750179107077,-490.0,0.00016931,2]
[366303207,1750179107087,-490.0,0.00016931,2]
[366303208,1750179107098,-490.0,0.00016931,2]
[366303209,1750179107109,-846.28,0.00016931,2]
[366303210,1750179107118,-2058.17,0.00016931,2]
[366303211,1750179107129,-1365.8,0.00016931,2]
[366303212,1750179107139,-368.66239894,0.00016931,2]
[366303213,1750179107149,-490.0,0.00016931,2]
[366303214,1750179107160,-490.0,0.00016931,2]
[366303215,1750179107170,-2352.65,0.00016931,2]
[366303216,1750179107180,-490.0,0.00016931,2]
[366303217,1750179107190,-490.0,0.00016931,2]
[366303218,1750179107200,-490.0,0.00016931,2]
[366303219,1750179107210,-490.0,0.00016931,2]
[366303220,1750179107220,-490.0,0.00016931,2]
[366303221,1750179107233,-2204.44,0.00016931,2]
[366303222,1750179107244,-507.19,0.00016931,2]
[366303223,1750179107254,-2601.0,0.00016931,2]
[366303224,1750179107264,-490.0,0.00016931,2]
[366303225,1750179107274,-490.0,0.00016931,2]
[366303226,1750179107284,-490.0,0.00016931,2]
[366303227,1750179107294,-711.48,0.00016931,2]
[366303228,1750179107304,-707.57,0.00016931,2]
[366303229,1750179107314,-525.53,0.00016931,2]
[366303230,1750179107324,-921.94,0.00016931,2]
[366303231,1750179107334,-490.0,0.00016931,2]
[366303232,1750179107344,-596.48,0.00016931,2]
[366303233,1750179107354,-490.0,0.00016931,2]
[366303234,1750179107363,-490.0,0.00016931,2]
[366303235,1750179107373,-518.02,0.00016931,2]
[366303236,1750179107383,-1738.97,0.00016931,2]
[366303237,1750179107392,-735.84,0.00016931,2]
[366303238,1750179107402,-490.0,0.00016931,2]
[366303239,1750179107412,-490.0,0.00016931,2]
[366303240,1750179107421,-490.0,0.00016931,2]
[366303241,1750179107431,-724.92,0.00016931,2]
[366303242,1750179107441,-490.0,0.00016931,2]
[366303243,1750179107450,-490.0,0.00016931,2]
[366303244,1750179107460,-533.22,0.00016931,2]
[366303245,1750179107470,-490.0,0.00016931,2]
[366303246,1750179107482,-490.0,0.00016931,2]
[366303247,1750179107492,-762.41,0.00016931,2]
[366303248,1750179107502,-654.96,0.00016931,2]
[366303249,1750179107514,-710.14,0.00016931,2]
[366303250,1750179107525,-490.0,0.00016931,2]
[366303251,1750179107536,-649.55,0.00016931,2]
[366303252,1750179107546,-490.0,0.00016931,2]
[366303253,1750179107557,-849.79,0.00016931,2]
[366303254,1750179107568,-490.0,0.00016931,2]
[366303255,1750179107578,-1776.33,0.00016931,2]
[366303256,1750179107589,-490.0,0.00016931,2]
[366303257,1750179107598,-490.0,0.00016931,2]
[366303258,1750179107609,-490.0,0.00016931,2]
[366303259,1750179107618,-715.35,0.00016931,2]
[366303260,1750179107628,-490.0,0.00016931,2]
[366303261,1750179107638,-490.0,0.00016931,2]
[366303262,1750179107648,-490.0,0.00016931,2]
[366303263,1750179107660,-863.5,0.00016931,2]
[366303264,1750179107670,-490.0,0.00016931,2]
[366303265,1750179107681,-490.0,0.00016931,2]
[366303266,1750179107691,-1374.9,0.00016931,2]
[366303267,1750179107701,-490.0,0.00016931,2]
[366303268,1750179107712,-1328.44,0.00016931,2]
[366303269,1750179107721,-490.0,0.00016931,2]
[366303270,1750179107732,-490.0,0.00016931,2]
[366303271,1750179107743,-1261.29,0.00016931,2]
[366303272,1750179107753,-490.0,0.00016931,2]
[366303273,1750179107764,-490.0,0.00016931,2]
[366303274,1750179107774,-1384.65,0.00016931,2]
[366303275,1750179107785,-490.0,0.00016931,2]
[366303276,1750179107795,-490.0,0.00016931,2]
[366303277,1750179107806,-490.0,0.00016931,2]
[366303278,1750179107817,-717.32,0.00016931,2]
[366303279,1750179107827,-1047.19,0.00016931,2]
[366303280,1750179107841,-490.0,0.00016931,2]
[366303281,1750179107851,-490.0,0.00016931,2]
[366303282,1750179107861,-664.21,0.00016931,2]
[366303283,1750179107872,-490.0,0.00016931,2]
[366303284,1750179107882,-608.47,0.00016931,2]
[366303285,1750179107892,-1039.02,0.00016931,2]
[366303286,1750179107903,-1949.19,0.00016931,2]
[366303287,1750179107913,-490.0,0.00016931,2]
[366303288,1750179107923,-959.41,0.00016931,2]
[366303289,1750179107933,-490.0,0.00016931,2]
[366303290,1750179107943,-490.0,0.00016931,2]
[366303291,1750179107953,-576.92,0.00016931,2]
[366303292,1750179107963,-490.0,0.00016931,2]
[366303293,1750179107975,-490.0,0.00016931,2]
[366303294,1750179107992,-490.0,0.00016931,2]
[366303295,1750179108002,-490.0,0.00016931,2]
[366303296,1750179108013,-1575.16,0.00016931,2]
[366303297,1750179108023,-490.0,0.00016931,2]
[366303298,1750179108034,-490.0,0.00016931,2]
[366303299,1750179108044,-490.0,0.00016931,2]
[366303300,1750179108054,-490.0,0.00016931,2]
[366303301,1750179108065,-1419.3,0.00016931,2]
[366303302,1750179108075,-813.29,0.00016931,2]
[366303303,1750179108085,-490.0,0.00016931,2]
[366303304,1750179108096,-490.0,0.00016931,2]
[366303305,1750179108106,-490.0,0.00016931,2]
[366303306,1750179108116,-490.0,0.00016931,2]
[366303307,1750179108126,-490.0,0.00016931,2]
[366303308,1750179108137,-497.13,0.00016931,2]
[366303309,1750179108146,-490.0,0.00016931,2]
[366303310,1750179108156,-490.0,0.00016931,2]
[366303311,1750179108167,-490.0,0.00016931,2]
[366303312,1750179108178,-490.0,0.00016931,2]
[366303313,1750179108188,-921.92,0.00016931,2]
[366303314,1750179108199,-490.0,0.00016931,2]
[366303315,1750179108210,-709.99,0.00016931,2]
[366303316,1750179108220,-490.0,0.00016931,2]
[366303317,1750179108233,-490.0,0.00016931,2]
[366303318,1750179108243,-490.0,0.00016931,2]
[366303319,1750179108254,-883.88,0.00016931,2]
[366303320,1750179108264,-754.55,0.00016931,2]
[366303321,1750179108274,-490.0,0.00016931,2]
[366303322,1750179108284,-490.0,0.00016931,2]
[366303323,1750179108296,-490.0,0.00016931,2]
[366303324,1750179108306,-1099.27,0.00016931,2]
[366303325,1750179108316,-836.32,0.00016931,2]
[366303326,1750179108326,-1250.98,0.00016931,2]
[366303327,1750179108336,-490.0,0.00016931,2]
[366303328,1750179108347,-516.55,0.00016931,2]
[366303329,1750179108357,-490.0,0.00016931,2]
[366303330,1750179108370,-629.3,0.00016931,2]
[366303331,1750179108380,-490.0,0.00016931,2]
[366303332,1750179108390,-490.0,0.00016931,2]
[366303333,1750179108400,-701.82,0.00016931,2]
[366303334,1750179108411,-490.0,0.00016931,2]
[366303335,1750179108421,-490.0,0.00016931,2]
[366303336,1750179108432,-855.3,0.00016931,2]
[366303337,1750179108442,-490.0,0.00016931,2]
[366303338,1750179108453,-1298.19,0.00016931,2]
[366303339,1750179108464,-491.02451642,0.00016931,2]
[366303340,1750179108479,-490.0,0.00016931,2]
[366303341,1750179108490,-490.0,0.00016931,2]
[366303342,1750179108502,-637.91,0.00016931,2]
[366303343,1750179108516,-490.0,0.00016931,2]
[366303344,1750179108526,-2096.23,0.00016931,2]
[366303345,1750179108536,-490.0,0.00016931,2]
[366303346,1750179108547,-1669.99,0.00016931,2]
[366303347,1750179108557,-490.0,0.00016931,2]
[366303348,1750179108566,-490.0,0.00016931,2]
[366303349,1750179108576,-1051.67,0.00016931,2]
[366303350,1750179108588,-490.0,0.00016931,2]
[366303351,1750179108597,-490.0,0.00016931,2]
[366303352,1750179108608,-793.6,0.00016931,2]
[366303353,1750179108618,-590.93,0.00016931,2]
[366303354,1750179108628,-292.26562721,0.00016931,2]
[366303355,1750179108639,-740.21,0.00016931,2]
[366303356,1750179108649,-535.37,0.00016931,2]
[366303357,1750179108659,-562.63184323,0.00016931,2]
[366303358,1750179108669,-490.0,0.00016931,2]
[366303359,1750179108680,-490.0,0.00016931,2]
[366303360,1750179108690,-728.2,0.00016931,2]
[366303361,1750179108701,-765.39,0.00016931,2]
[366303362,1750179108713,-490.0,0.00016931,2]
[366303363,1750179108724,-943.38,0.00016931,2]
[366303364,1750179108738,-1981.54,0.00016931,2]
[366303365,1750179108748,-490.0,0.00016931,2]
[366303366,1750179108760,-490.0,0.00016931,2]
[366303367,1750179108771,-490.0,0.00016931,2]
[366303368,1750179108782,-490.0,0.00016931,2]
[366303369,1750179108793,-490.0,0.00016931,2]
[366303370,1750179108803,-490.0,0.00016931,2]
[366303371,1750179108814,-195.15061738,0.00016931,2]
[366303372,1750179108824,-554.58165708,0.00016931,2]
[366303373,1750179108834,-490.0,0.00016931,2]
[366303374,1750179108844,-536.83,0.00016931,2]
[366303375,1750179108854,-490.0,0.00016931,2]
[366303376,1750179108865,-490.0,0.00016931,2]
[366303377,1750179108875,-490.0,0.00016931,2]
[366303378,1750179108885,-757.58,0.00016931,2]
[366303379,1750179108895,-490.0,0.00016931,2]
[366303380,1750179108905,-1517.82,0.00016931,2]
[366303381,1750179108915,-929.75,0.00016931,2]
[366303382,1750179108925,-490.0,0.00016931,2]
[366303383,1750179108935,-490.0,0.00016931,2]
[366303384,1750179109040,-1098.3,0.00016931,2]
[366303385,1750179109050,-535.07,0.00016931,2]
[366303386,1750179109059,-490.0,0.00016931,2]
[366303387,1750179109069,-919.04,0.00016931,2]
[366303388,1750179109079,-490.0,0.00016931,2]
[366303389,1750179109088,-2813.8,0.00016931,2]
[366303390,1750179109098,-490.0,0.00016931,2]
[366303391,1750179109107,-490.0,0.00016931,2]
[366303392,1750179109117,-1534.13,0.00016931,2]
[366303393,1750179109127,-750.25,0.00016931,2]
[366303394,1750179109136,-490.0,0.00016931,2]
[366303395,1750179109146,-490.0,0.00016931,2]
[366303396,1750179109156,-606.7,0.00016931,2]
[366303397,1750179109166,-490.0,0.00016931,2]
[366303398,1750179109175,-661.25,0.00016931,2]
[366303399,1750179109185,-490.0,0.00016931,2]
[366303400,1750179109196,-858.7,0.00016931,2]
[366303401,1750179109206,-359.28726763,0.00016931,2]
[366303402,1750179109216,-490.0,0.00016931,2]
[366303403,1750179109225,-490.0,0.00016931,2]
[366303404,1750179109238,-490.0,0.00016931,2]
[366303405,1750179109248,-777.91,0.00016931,2]
[366303406,1750179109257,-490.0,0.00016931,2]
[366303407,1750179109269,-490.0,0.00016931,2]
[366303408,1750179109279,-490.0,0.00016931,2]
[366303409,1750179109289,-490.0,0.00016931,2]
[366303410,1750179109299,-490.0,0.00016931,2]
[366303411,1750179109310,-1350.18,0.00016931,2]
[366303412,1750179109321,-490.0,0.00016931,2]
[366303413,1750179109331,-1882.71,0.00016931,2]
[366303414,1750179109340,-490.0,0.00016931,2]
[366303415,1750179109350,-490.0,0.00016931,2]
[366303416,1750179109365,-514.84,0.00016931,2]
[366303417,1750179109380,-490.0,0.00016931,2]
[366303418,1750179109390,-490.0,0.00016931,2]
[366303419,1750179109401,-490.0,0.00016931,2]
[366303420,1750179109411,-490.0,0.00016931,2]
[366303421,1750179109421,-490.0,0.00016931,2]
[366303422,1750179109430,-1921.85,0.00016931,2]
[366303423,1750179109440,-490.0,0.00016931,2]
[366303424,1750179109450,-1238.17,0.00016931,2]
[366303425,1750179109459,-1424.18,0.00016931,2]
[366303426,1750179109468,-490.0,0.00016931,2]
[366303427,1750179109479,-490.0,0.00016931,2]
[366303428,1750179109489,-530.04456349,0.00016931,2]
[366303429,1750179109499,-490.0,0.00016931,2]
[366303430,1750179109509,-172.09467356,0.00016931,2]
[366303431,1750179109523,-1456.63,0.00016931,2]
[366303432,1750179109532,-490.0,0.00016931,2]
[366303433,1750179109541,-490.0,0.00016931,2]
[366303434,1750179109550,-490.0,0.00016931,2]
[366303435,1750179109562,-490.0,0.00016931,2]
[366303436,1750179109571,-490.0,0.00016931,2]
[366303437,1750179109580,-1305.87,0.00016931,2]
[366303438,1750179109589,-490.0,0.00016931,2]
[366303439,1750179109599,-490.0,0.00016931,2]
[366303440,1750179109609,-490.0,0.00016931,2]
[366303441,1750179109618,-490.0,0.00016931,2]
[366303442,1750179109628,-1296.45,0.00016931,2]
[366303443,1750179109638,-490.0,0.00016931,2]
[366303444,1750179109647,-490.0,0.00016931,2]
[366303445,1750179109657,-490.0,0.00016931,2]
[366303446,1750179109666,-490.0,0.00016931,2]